fUST/lending_fUST_20240429
["ID","MTS","AMOUNT","RATE_DAILY","PERIOD"]
[324859888,1714378232974,-569.39,0.0001452,2]
[324859889,1714378232983,-593.64817476,0.0001452,2]
[324859890,1714378232993,-500.0,0.0001452,2]
[324859891,1714378233004,-500.0,0.0001452,2]
[324859892,1714378233013,-151.0,0.0001452,2]
[324859893,1714378233023,-512.59,0.0001452,2]
[324859894,1714378233033,-577.24,0.0001452,2]
[324859895,1714378233042,-500.0,0.0001452,2]
[324859896,1714378233051,-500.0,0.0001452,2]
[324859897,1714378233061,-399.9,0.0001452,2]
[324859898,1714378233070,-500.0,0.0001452,2]
[324859899,1714378233080,-500.0,0.0001452,2]
[324859900,1714378233089,-203.39,0.0001452,2]
[324859901,1714378233098,-500.0,0.0001452,2]
[324859902,1714378233108,-778.05,0.0001452,2]
[324859903,1714378233117,-500.0,0.0001452,2]
[324859904,1714378233127,-268.35,0.0001452,2]
[324859905,1714378233136,-417.0,0.00014572,2]
[324859906,1714378233146,-150.0,0.00014572,2]
[324859907,1714378233155,-500.0,0.00014794,2]
[324859908,1714378233164,-500.0,0.00014794,2]
[324859909,1714378233173,-577.24,0.00014794,2]
[324859910,1714378233278,-500.0,0.00014794,2]
[324859911,1714378233310,-500.0,0.00014794,2]
[324859912,1714378233319,-500.0,0.00014794,2]
[324859913,1714378233329,-500.0,0.00014794,2]
[324859914,1714378233339,-500.0,0.00014794,2]
[324859915,1714378233348,-778.05,0.00014794,2]
[324859916,1714378233358,-500.0,0.00014794,2]
[324859917,1714378233367,-151.0,0.00015,2]
[324859918,1714378233376,-151.0,0.00015,2]
[324859919,1714378233388,-151.0,0.00015,2]
[324859920,1714378233397,-192.15272,0.00015,2]
[324859921,1714378233406,-246.92501,0.00015,2]
[324859922,1714378233416,-151.0,0.00015,2]
[324859923,1714378233425,-1677.62779446,0.00015,2]
[324859924,1714378233436,-2101.14247839,0.00015,2]
[324859925,1714378233446,-690.90984934,0.00015,2]
[324859926,1714378233459,-2089.16649097,0.00015,2]
[324859927,1714378233469,-154.78330338,0.00015008,2]
[324859928,1714378233478,-154.78330338,0.00015008,2]
[324859929,1714378233488,-939.34960788,0.00015009,2]
[324859930,1714378233497,-312.89043206,0.00015009,2]
[324859931,1714378233507,-150.0,0.0001501,3]
[324859932,1714378233516,-155.2538722,0.00015061,2]
[324859933,1714378233528,-409.45107811,0.00015061,2]
[324859934,1714378233540,-154.95400209,0.00015061,2]
[324859935,1714378233550,-207.92306846,0.00015061,2]
[324859936,1714378233559,-151.0,0.00015061,2]
[324859937,1714378233569,-151.0,0.00015061,2]
[324859938,1714378233579,-155.61648785,0.00015067,2]
[324859939,1714378233588,-420.0,0.00015067,2]
[324859940,1714378233597,-500.0,0.00015068,2]
[324859941,1714378233609,-500.0,0.00015068,2]
[324859942,1714378233619,-151.0,0.00015068,2]
[324859943,1714378233629,-129.40039747,0.00015068,2]
[324859985,1714378238253,-500.0,0.00013698,2]
[324859987,1714378238262,-500.0,0.00013698,2]
[324859988,1714378238271,-500.0,0.00013698,2]
[324859989,1714378238280,-500.0,0.00013972,2]
[324859990,1714378238289,-500.0,0.00013972,2]
[324859991,1714378238298,-240.69334963,0.00014246,2]
[324859992,1714378238307,-447.83960253,0.00015068,2]
[324859993,1714378238316,-500.0,0.00015068,2]
[324859994,1714378238325,-382.31877078,0.00015068,2]
[324859995,1714378238334,-500.0,0.00015068,2]
[324859996,1714378238343,-500.0,0.00015068,2]
[324859997,1714378238352,-500.0,0.00015068,2]
[324859998,1714378238361,-778.05,0.00015068,2]
[324859999,1714378238370,-500.0,0.00015068,2]
[324860000,1714378238379,-151.0,0.00015273,2]
[324860001,1714378238390,-310.45624761,0.00015342,2]
[324860002,1714378238399,-577.24,0.00015342,2]
[324860003,1714378238408,-500.0,0.00015342,2]
[324860004,1714378238417,-500.0,0.00015342,2]
[324860005,1714378238427,-500.0,0.00015342,2]
[324860006,1714378238436,-368.00123911,0.00015342,2]
[324860007,1714378238445,-778.05,0.00015342,2]
[324860008,1714378238454,-500.0,0.00015342,2]
[324860009,1714378238463,-688.95828471,0.00015399,2]
[324860010,1714378238472,-154.84515485,0.0001546,2]
[324860011,1714378238482,-155.32473177,0.00015614,2]
[324860012,1714378238491,-156.01396348,0.00015614,2]
[324860013,1714378238500,-154.8760713,0.00015614,2]
[324860014,1714378238509,-154.8760713,0.00015614,2]
[324860015,1714378238518,-159.27493445,0.00015615,2]
[324860016,1714378238528,-577.24,0.00015616,2]
[324860017,1714378238540,-476.72,0.00015616,2]
[324860018,1714378238549,-500.0,0.00015616,2]
[324860020,1714378238558,-500.0,0.00015616,2]
[324860022,1714378238569,-778.05,0.00015616,2]
[324860024,1714378238578,-500.0,0.00015616,2]
[324860026,1714378238587,-577.24,0.0001589,2]
[324860028,1714378238596,-151.0,0.0001589,2]
[324860030,1714378238606,-151.0,0.0001589,2]
[324860032,1714378238616,-500.0,0.0001589,2]
[324860034,1714378238626,-500.0,0.0001589,2]
[324860036,1714378238635,-778.05,0.0001589,2]
[324860038,1714378238644,-500.0,0.0001589,2]
[324860040,1714378238653,-196.73929801,0.00016,2]
[324860042,1714378238662,-151.0,0.00016164,2]
[324860044,1714378238671,-577.24,0.00016164,2]
[324860046,1714378238680,-500.0,0.00016164,2]
[324860048,1714378238688,-151.0,0.00016164,2]
[324860050,1714378238698,-500.0,0.00016164,2]
[324860052,1714378238707,-778.05,0.00016164,2]
[324860054,1714378238716,-500.0,0.00016164,2]
[324860056,1714378238725,-688.95828471,0.000163,2]
[324860058,1714378238734,-151.0,0.00016369,2]
[324860060,1714378238743,-151.0,0.00016438,2]
[324860062,1714378238752,-577.24,0.00016438,2]
[324860064,1714378238761,-500.0,0.00016438,2]
[324860065,1714378238770,-500.0,0.00016438,2]
[324860067,1714378238779,-778.05,0.00016438,2]
[324860069,1714378238789,-500.0,0.00016438,2]
[324860071,1714378238798,-364.07994831,0.00016489,2]
[324860073,1714378238807,-151.0,0.000165,2]
[324860075,1714378238817,-151.0,0.000165,2]
[324860077,1714378238826,-272.7929159,0.000165,2]
[324860079,1714378238835,-587.0,0.00016573,2]
[324860081,1714378238844,-4911.81979243,0.00016612,2]
[324860083,1714378238853,-577.24,0.00016712,2]
[324860084,1714378238862,-500.0,0.00016712,2]
[324860087,1714378238872,-500.0,0.00016712,2]
[324860089,1714378238881,-778.05,0.00016712,2]
[324860090,1714378238891,-500.0,0.00016712,2]
[324860092,1714378238900,-260.3242713,0.00016984,2]
[324860094,1714378238909,-577.24,0.00016986,2]
[324860096,1714378238918,-500.0,0.00016986,2]
[324860098,1714378238927,-500.0,0.00016986,2]
[324860100,1714378238936,-778.05,0.00016986,2]
[324860102,1714378238946,-500.0,0.00016986,2]
[324860105,1714378238955,-688.95828471,0.000172,2]
[324860106,1714378238964,-577.24,0.0001726,2]
[324860109,1714378238974,-500.0,0.0001726,2]
[324860110,1714378238984,-500.0,0.0001726,2]
[324860112,1714378238994,-778.05,0.0001726,2]
[324860114,1714378239003,-184.23428019,0.0001726,2]
[324860117,1714378239012,-410200.88923209,0.000173,2]
[324860119,1714378239022,-162.209349,0.000173,2]
[324860121,1714378239031,-151.0,0.000173,2]
[324860122,1714378239041,-151.0,0.000173,2]
[324860125,1714378239050,-151.0,0.000173,2]
[324860127,1714378239060,-151.0,0.000173,2]
[324860129,1714378239069,-151.0,0.000173,2]
[324860130,1714378239079,-577.24,0.00017534,2]
[324860132,1714378239088,-500.0,0.00017534,2]
[324860135,1714378239098,-406.98383709,0.00017534,2]
[324860136,1714378239107,-778.05,0.00017534,2]
[324860138,1714378239116,-417.0,0.00017572,2]
[324860140,1714378239125,-150.0,0.00017572,2]
[324860142,1714378239135,-577.24,0.00017808,2]
[324860144,1714378239144,-500.0,0.00017808,2]
[324860146,1714378239152,-778.05,0.00017808,2]
[324860148,1714378239162,-3134.48557274,0.00018,7]
[324860150,1714378239171,-189.36782433,0.00018,2]
[324860152,1714378239180,-155.42882988,0.00018,2]
[324860154,1714378239189,-5000.0,0.00018,2]
[324860155,1714378239198,-577.24,0.00018082,2]
[324860156,1714378239207,-500.0,0.00018082,2]
[324860158,1714378239216,-778.05,0.00018082,2]
[324860160,1714378239224,-823.0,0.00018231,2]
[324860162,1714378239233,-577.24,0.00018356,2]
[324860164,1714378239242,-500.0,0.00018356,2]
[324860166,1714378239251,-778.05,0.00018356,2]
[324860168,1714378239260,-153.0,0.00018417,2]
[324860170,1714378239269,-153.0,0.00018417,2]
[324860172,1714378239278,-153.0,0.00018417,2]
[324860174,1714378239287,-605.03397323,0.000185,2]
[324860176,1714378239296,-577.24,0.0001863,2]
[324860177,1714378239305,-151.0,0.0001863,2]
[324860179,1714378239314,-151.0,0.0001863,2]
[324860181,1714378239323,-500.0,0.0001863,2]
[324860183,1714378239332,-778.05,0.0001863,2]
[324860185,1714378239341,-588.0,0.000187,2]
[324860188,1714378239350,-620.0,0.00018852,2]
[324860189,1714378239359,-151.0,0.000189,2]
[324860191,1714378239368,-5663.90978298,0.000189,2]
[324860193,1714378239377,-577.24,0.00018904,2]
[324860195,1714378239387,-500.0,0.00018904,2]
[324860197,1714378239396,-778.05,0.00018904,2]
[324860199,1714378239406,-239.19602788,0.00019,2]
[324860201,1714378239415,-154.78330338,0.00019,2]
[324860203,1714378239424,-7934.04214632,0.00019,2]
[324860205,1714378239433,-238.58299486,0.00019,2]
[324860207,1714378239443,-500.0,0.00019178,2]
[324860209,1714378239452,-500.0,0.00019178,2]
[324860211,1714378239461,-346.58073673,0.00019178,2]
[324860213,1714378239470,-500.0,0.00019178,2]
[324860215,1714378239479,-500.0,0.00019178,2]
[324860217,1714378239488,-500.0,0.00019178,2]
[324860219,1714378239497,-257.76438773,0.00019178,2]
[324860221,1714378239506,-500.0,0.00019178,2]
[324860223,1714378239515,-396.94884453,0.00019178,2]
[324860225,1714378239525,-282.81102246,0.00019178,2]
[324860227,1714378239539,-500.0,0.00019178,2]
[324860229,1714378239548,-491.90168705,0.00019178,2]
[324860231,1714378239557,-201.0523636,0.00019178,2]
[324860233,1714378239566,-195.33902561,0.00019178,2]
[324860235,1714378239576,-500.0,0.00019178,2]
[324860237,1714378239586,-529.9259078,0.00019178,2]
[324860239,1714378239596,-500.0,0.00019178,2]
[324860241,1714378239607,-500.0,0.00019178,2]
[324860243,1714378239616,-500.0,0.00019178,2]
[324860245,1714378239625,-500.0,0.00019178,2]
[324860247,1714378239634,-499.99999999,0.00019178,2]
[324860249,1714378239643,-500.0,0.00019178,2]
[324860251,1714378239652,-500.0,0.00019178,2]
[324860253,1714378239661,-500.0,0.00019178,2]
[324860255,1714378239671,-500.0,0.00019178,2]
[324860257,1714378239680,-500.0,0.00019178,2]
[324860259,1714378239689,-359.10836254,0.00019178,2]
[324860261,1714378239698,-577.24,0.00019178,2]
[324860263,1714378239708,-151.0,0.00019178,2]
[324860265,1714378239717,-151.0,0.00019178,2]
[324860267,1714378239726,-500.0,0.00019178,2]
[324860269,1714378239735,-151.0,0.00019178,2]
[324860271,1714378239744,-778.05,0.00019178,2]
[324860273,1714378239753,-161.725064,0.00019178,2]
[324860275,1714378239762,-160.703891,0.00019178,2]
[324860277,1714378239771,-163.324046,0.00019178,2]
[324860279,1714378239780,-350.653558,0.00019178,2]
[324860281,1714378239789,-350.653558,0.00019178,2]
[324860283,1714378239798,-350.653558,0.00019178,2]
[324860285,1714378239807,-350.653558,0.00019178,2]
[324860288,1714378239816,-350.653558,0.00019178,2]
[324860290,1714378239825,-350.653558,0.00019178,2]
[324860292,1714378239834,-350.653558,0.00019178,2]
[324860294,1714378239843,-350.653558,0.00019178,2]
[324860296,1714378239852,-350.653558,0.00019178,2]
[324860298,1714378239862,-350.653558,0.00019178,2]
[324860299,1714378239871,-350.653558,0.00019178,2]
[324860301,1714378239880,-350.653558,0.00019178,2]
[324860304,1714378239892,-350.653558,0.00019178,2]
[324860306,1714378239901,-350.653558,0.00019178,2]
[324860307,1714378239911,-577.24,0.00019452,2]
[324860309,1714378239920,-326.25068161,0.00019452,2]
[324860311,1714378239930,-778.05,0.00019452,2]
[324860313,1714378239940,-577.24,0.00019726,2]
[324860315,1714378239949,-778.05,0.00019726,2]
[324860317,1714378239958,-620.0,0.00019794,2]
[324860319,1714378239967,-620.0,0.00019794,2]
[324860321,1714378239976,-151.0,0.00019794,2]
[324860323,1714378239985,-151.0,0.00019794,2]
[324860325,1714378239994,-164.737122,0.00019794,2]
[324860327,1714378240003,-151.0,0.00019794,2]
[324860329,1714378240012,-151.0,0.00019794,2]
[324860331,1714378240021,-167.414787,0.00019865,2]
[324860333,1714378240031,-167.34897,0.00019865,2]
[324860335,1714378240041,-200.818763,0.00019865,2]
[324860337,1714378240050,-743.149822,0.00019865,2]
[324860339,1714378240059,-160.435194,0.00019865,2]
[324860341,1714378240068,-306.0,0.00019921,2]
[324860343,1714378240077,-153.0,0.00019921,2]
[324860345,1714378240087,-55007.96761546,0.00019996,2]
[324860347,1714378240096,-350.653558,0.00019996,2]
[324860349,1714378240106,-350.653558,0.00019996,2]
[324860351,1714378240115,-151.0,0.00019996,2]
[324860353,1714378240124,-151.0,0.00019996,2]
[324860355,1714378240133,-151.0,0.00019996,2]
[324860357,1714378240142,-151.0,0.00019996,2]
[324860359,1714378240151,-151.0,0.00019996,2]
[324860361,1714378240160,-151.0,0.00019996,2]
[324860363,1714378240169,-151.0,0.00019996,2]
[324860365,1714378240178,-151.0,0.00019996,2]
[324860367,1714378240187,-151.0,0.00019996,2]
[324860369,1714378240197,-151.0,0.00019996,2]
[324860371,1714378240206,-151.0,0.00019996,2]
[324860373,1714378240215,-80000.0,0.0002,2]
[324860375,1714378240224,-278.30883524,0.0002,2]
[324860377,1714378240234,-1007.70309571,0.0002,4]
[324860379,1714378240243,-329.93912296,0.0002,2]
[324860381,1714378240252,-67415.61392424,0.0002,2]
[324860383,1714378240262,-155.40912067,0.0002,2]
[324860385,1714378240271,-320.65450041,0.0002,2]
[324860387,1714378240280,-155.02548339,0.0002,2]
[324860389,1714378240290,-241.68429594,0.0002,2]
[324860391,1714378240299,-495.0,0.0002,2]
[324860393,1714378240308,-400.0,0.0002,2]
[324860395,1714378240318,-200.0,0.0002,2]
[324860398,1714378240327,-350.653558,0.0002,2]
[324860400,1714378240336,-350.653558,0.0002,2]
[324860401,1714378240345,-350.653558,0.0002,2]
[324860403,1714378240354,-350.653552,0.0002,2]
[324860406,1714378240363,-577.33785602,0.0002,2]
[324860408,1714378240373,-151.0,0.0002,2]
[324860410,1714378240382,-151.0,0.0002,2]
[324860412,1714378240392,-151.0,0.0002,2]
[324860414,1714378240401,-151.0,0.0002,2]
[324860416,1714378240412,-151.0,0.0002,2]
[324860418,1714378240421,-151.0,0.0002,2]
[324860430,1714378240536,-151.0,0.0002,2]
[324860432,1714378240548,-151.0,0.0002,2]
[324860434,1714378240557,-151.0,0.0002,2]
[324860436,1714378240567,-151.0,0.0002,2]
[324860438,1714378240576,-151.0,0.0002,2]
[324860440,1714378240586,-151.0,0.0002,2]
[324860442,1714378240595,-179.773504,0.0002,2]
[324860445,1714378240606,-151.0,0.0002,2]
[324860447,1714378240615,-151.0,0.0002,2]
[324860448,1714378240624,-151.0,0.0002,2]
[324860450,1714378240633,-151.0,0.0002,2]
[324860452,1714378240643,-151.0,0.0002,2]
[324860455,1714378240652,-296.742278,0.0002,2]
[324860456,1714378240662,-151.73000347,0.0002,2]
[324860458,1714378240671,-778.08045655,0.0002,2]
[324860460,1714378240680,-1152.0,0.00020054,2]
[324860462,1714378240690,-4092.866607,0.00020113,2]
[324860464,1714378240699,-2946.855687,0.00020113,2]
[324860466,1714378240708,-200.818763,0.00020113,2]
[324860468,1714378240718,-743.149822,0.00020113,2]
[324860470,1714378240727,-167.34897,0.00020196,2]
[324860472,1714378240736,-4092.866607,0.00020362,2]
[324860474,1714378240745,-2946.855687,0.00020362,2]
[324860476,1714378240755,-200.818763,0.00020362,2]
[324860478,1714378240764,-743.149822,0.00020362,2]
[324860480,1714378240773,-364.07994831,0.00020482,2]
[324860482,1714378240782,-1007.951808,0.000205,2]
[324860484,1714378240791,-167.34897,0.00020527,2]
[324860486,1714378240801,-3000.0,0.00020547,2]
[324860488,1714378240810,-3000.0,0.00020547,2]
[324860490,1714378240819,-3000.0,0.00020547,2]
[324860492,1714378240830,-3000.0,0.00020547,2]
[324860494,1714378240839,-3000.0,0.00020547,2]
[324860496,1714378240848,-3000.0,0.00020547,2]
[324860498,1714378240857,-3000.0,0.00020547,2]
[324860500,1714378240866,-3000.0,0.00020547,2]
[324860502,1714378240875,-3000.0,0.00020547,2]
[324860504,1714378240886,-3000.0,0.00020547,2]
[324860507,1714378240895,-3000.0,0.00020547,2]
[324860508,1714378240904,-3000.0,0.00020547,2]
[324860511,1714378240914,-3011.8674966,0.00020547,2]
[324860513,1714378240923,-151.0,0.00020547,2]
[324860515,1714378240933,-151.0,0.00020547,2]
[324860517,1714378240942,-151.0,0.00020547,2]
[324860519,1714378240951,-151.0,0.00020547,2]
[324860521,1714378240960,-151.0,0.00020547,2]
[324860522,1714378240970,-625.839322,0.00020548,2]
[324860525,1714378240979,-417.0,0.00020572,2]
[324860526,1714378240989,-150.0,0.00020572,2]
[324860528,1714378240998,-4092.866607,0.0002061,2]
[324860530,1714378241007,-2946.855687,0.0002061,2]
[324860533,1714378241016,-200.818763,0.0002061,2]
[324860534,1714378241026,-743.149822,0.0002061,2]
[324860537,1714378241035,-151.0,0.0002061,2]
[324860538,1714378241044,-151.0,0.0002061,2]
[324860540,1714378241054,-151.0,0.0002061,2]
[324860542,1714378241064,-151.0,0.0002061,2]
[324860544,1714378241073,-151.0,0.0002061,2]
[324860546,1714378241082,-620.0,0.00020784,2]
[324860549,1714378241091,-620.0,0.00020784,2]
[324860551,1714378241101,-1040.50833068,0.00020825,5]
[324860552,1714378241110,-4092.866607,0.00020858,2]
[324860555,1714378241120,-2946.855687,0.00020858,2]
[324860556,1714378241130,-167.34897,0.00020858,2]
[324860558,1714378241141,-200.818763,0.00020858,2]
[324860560,1714378241151,-743.149822,0.00020858,2]
[324860563,1714378241160,-44285.49750927,0.00020999,2]
[324860565,1714378241169,-243.96344034,0.00020999,2]
[324860567,1714378241178,-270.555248,0.00020999,2]
[324860569,1714378241187,-151.0,0.00020999,2]
[324860571,1714378241196,-151.0,0.00020999,2]
[324860573,1714378241205,-151.0,0.00020999,2]
[324860575,1714378241215,-2000.0,0.00021,5]
[324860577,1714378241224,-236.53479931,0.00021,2]
[324860579,1714378241234,-50101.79705634,0.00021,2]
[324860581,1714378241243,-10008.83635526,0.00021,2]
[324860583,1714378241251,-197.23845787,0.00021,2]
[324860585,1714378241260,-1000.0,0.00021,2]
[324860587,1714378241269,-151.0,0.00021,2]
[324860589,1714378241278,-151.0,0.00021,2]
[324860591,1714378241287,-151.0,0.00021,2]
[324860592,1714378241296,-50059.84640617,0.00021028,5]
[324860594,1714378241306,-151.0,0.00021028,2]
[324860596,1714378241315,-151.0,0.00021028,2]
[324860598,1714378241324,-107812.39013481,0.00021349,10]
[324860601,1714378241339,-220654.49778367,0.00021349,10]
[324860610,1714378241412,-500.0,0.00013698,2]
[324860612,1714378241421,-500.04948999,0.00013698,2]
[324860614,1714378241433,-95.83341635,0.00013698,2]
[324860616,1714378241442,-500.0,0.00013972,2]
[324860618,1714378241452,-299.84,0.00014246,2]
[324860620,1714378241461,-29905.5265501,0.00021349,10]
[324860622,1714378241472,-47814.8876418,0.00021349,10]
[324860624,1714378241482,-400.0,0.00021349,10]
[324860985,1714378244658,-40508.90612003,0.00021349,10]
[324861268,1714379235178,-250.0,0.00012234,2]
[324861269,1714379235197,-1618.4689512,0.00012337,2]
[324861270,1714379235217,-300.0,0.00012427,2]
[324861271,1714379235236,-15.4910488,0.00012427,2]
[324861273,1714379250122,-284.5089512,0.00012427,2]
[324861274,1714379250142,-17013.94628546,0.00012429,2]
[324861275,1714379251109,-2695.29,0.00012429,2]
[324861280,1714379346091,-5190.76371454,0.00012429,2]
[324861281,1714379361102,-227.54996772,0.00013598,2]
[324861282,1714379361128,-1712.56059274,0.00013696,2]
[324861283,1714379370068,5627.04020712,0.00012792,2]
[324861285,1714379373090,-19272.95979288,0.00012792,2]
[324861318,1714379432436,-163.89776703,0.00013597,2]
[324861319,1714379432445,-1094.13854726,0.00013696,2]
[324861320,1714379432454,-500.0,0.00013698,2]
[324861321,1714379432464,-573.62268151,0.00013698,2]
[324861322,1714379432473,-500.01281628,0.00013698,2]
[324861323,1714379432482,-500.0,0.00013698,2]
[324861324,1714379432491,-500.0,0.00013698,2]
[324861325,1714379432500,-500.0,0.00013698,2]
[324861326,1714379432510,-500.0,0.00013698,2]
[324861327,1714379432519,-500.0,0.00013698,2]
[324861328,1714379432528,-500.0,0.00013698,2]
[324861329,1714379432537,-500.0,0.00013698,2]
[324861330,1714379432546,-500.0,0.00013698,2]
[324861331,1714379432555,-500.0,0.00013698,2]
[324861332,1714379432564,-500.0,0.00013698,2]
[324861333,1714379432574,-500.0,0.00013698,2]
[324861334,1714379432583,-500.0,0.00013698,2]
[324861335,1714379432593,-506.53,0.00013698,2]
[324861336,1714379432602,-500.0,0.00013698,2]
[324861337,1714379432612,-500.0,0.00013698,2]
[324861338,1714379432621,-500.0,0.00013698,2]
[324861339,1714379432630,-500.0,0.00013698,2]
[324861340,1714379432639,-500.0,0.00013698,2]
[324861341,1714379432649,-500.0,0.00013698,2]
[324861342,1714379432658,-500.0,0.00013698,2]
[324861343,1714379432667,-500.0,0.00013698,2]
[324861344,1714379432677,-500.0,0.00013698,2]
[324861345,1714379432688,-500.0,0.00013698,2]
[324861346,1714379432697,-500.0,0.00013698,2]
[324861347,1714379432707,-500.0,0.00013698,2]
[324861348,1714379432716,-500.0,0.00013698,2]
[324861349,1714379432726,-500.0,0.00013698,2]
[324861350,1714379432735,-500.0,0.00013698,2]
[324861351,1714379432744,-500.0,0.00013698,2]
[324861352,1714379432753,-500.0,0.00013698,2]
[324861353,1714379432762,-500.0,0.00013698,2]
[324861354,1714379432772,-500.0,0.00013698,2]
[324861355,1714379432781,-500.0,0.00013698,2]
[324861356,1714379432790,-283.62851853,0.00013698,2]
[324861357,1714379432799,-559.26598269,0.00013698,2]
[324861358,1714379432808,-500.0,0.00013698,2]
[324861359,1714379432817,-500.0,0.00013698,2]
[324861360,1714379432825,-500.0,0.00013698,2]
[324861361,1714379432834,-500.0,0.00013698,2]
[324861362,1714379432843,-482.51402582,0.00013698,2]
[324861363,1714379432852,-500.0,0.00013698,2]
[324861364,1714379432861,-500.0,0.00013698,2]
[324861365,1714379432870,-500.0,0.00013698,2]
[324861366,1714379432882,-500.0,0.00013698,2]
[324861367,1714379432891,-500.0,0.00013698,2]
[324861368,1714379432900,-254.98552436,0.00013698,2]
[324861369,1714379432909,-500.0,0.00013698,2]
[324861370,1714379432918,-500.0,0.00013698,2]
[324861371,1714379432929,-500.0,0.00013698,2]
[324861372,1714379432941,-500.0,0.00013698,2]
[324861373,1714379432950,-260.1937474,0.00013698,2]
[324861374,1714379432961,-603.91912185,0.00013698,2]
[324861375,1714379432970,-500.0,0.00013698,2]
[324861376,1714379432979,-500.0,0.00013698,2]
[324861377,1714379432987,-500.0,0.00013698,2]
[324861378,1714379432996,-500.0,0.00013698,2]
[324861379,1714379433005,-500.0,0.00013698,2]
[324861380,1714379433124,-624.28719997,0.00013698,2]
[324861381,1714379433138,-500.0,0.00013698,2]
[324861382,1714379433148,-500.0,0.00013698,2]
[324861383,1714379433179,-500.0,0.00013698,2]
[324861384,1714379433196,-500.0,0.00013698,2]
[324861385,1714379433206,-581.42,0.00013698,2]
[324861386,1714379433215,-500.0,0.00013698,2]
[324861387,1714379433224,-500.0,0.00013698,2]
[324861388,1714379433234,-500.0,0.00013698,2]
[324861389,1714379433243,-500.0,0.00013698,2]
[324861390,1714379433252,-500.0,0.00013698,2]
[324861391,1714379433262,-500.0,0.00013698,2]
[324861392,1714379433271,-507.51907546,0.00013698,2]
[324861393,1714379433280,-500.0,0.00013698,2]
[324861394,1714379433290,-500.0,0.00013698,2]
[324861395,1714379433299,-500.0,0.00013698,2]
[324861396,1714379433308,-500.0,0.00013698,2]
[324861397,1714379433317,-500.0,0.00013698,2]
[324861398,1714379433327,-500.0,0.00013698,2]
[324861399,1714379433336,-500.0,0.00013698,2]
[324861400,1714379433345,-613.12,0.00013698,2]
[324861401,1714379433354,-500.0,0.00013698,2]
[324861402,1714379433364,-500.0,0.00013698,2]
[324861403,1714379433373,-166.666666,0.00013699,2]
[324861404,1714379433383,-730.61014924,0.000138,2]
[324861405,1714379433392,-500.0,0.00013972,2]
[324861406,1714379433402,-500.0,0.00013972,2]
[324861407,1714379433411,-500.0,0.00013972,2]
[324861408,1714379433421,-294.42,0.00013972,2]
[324861409,1714379433430,-500.0,0.00013972,2]
[324861410,1714379433439,-382.91,0.00013972,2]
[324861411,1714379433448,-500.0,0.00013972,2]
[324861412,1714379433457,-500.0,0.00013972,2]
[324861413,1714379433467,-500.0,0.00013972,2]
[324861414,1714379433476,-500.0,0.00013972,2]
[324861415,1714379433485,-500.0,0.00013972,2]
[324861416,1714379433494,-500.0,0.00013972,2]
[324861417,1714379433502,-500.0,0.00013972,2]
[324861418,1714379433511,-403.8918214,0.00013972,2]
[324861457,1714379438465,-500.0,0.00013698,2]